[Event "4NCL 2nd Div 2023-24"]
[Site "Daventry"]
[Date "2024.05.05"]
[Round "10.16"]
[White "Oh, Julie"]
[Black "Birtwistle, Nigel"]
[Result "0-1"]
[ECO "B23"]
[WhiteElo "1618"]
[BlackElo "2049"]
[Annotator "NA RC"]
[PlyCount "58"]
[EventDate "2023.11.11"]
[EventType "team-tourn"]
[EventCountry "ENG"]
[SourceTitle "playchess.com"]
[Source "ChessBase"]
[SourceQuality "1"]
[TimeControl "40/6000+30:3000+30"]

1. e4 {[%emt 0:00:05]} c5 {[%emt 0:00:05]} 2. Nc3 {[%emt 0:00:21]} g6 {[%emt 0:00:06]} 3. f4 {[%emt 0:00:34]} Bg7 {[%emt 0:00:08]} 4. Nf3 {[%emt 0:00:20]} a6 {[%emt 0:00:07]} 5. a4 {[%emt 0:03:36]} Nc6 {[%emt 0:00:30]} 6. Be2 {[%emt 0:10:49]} e6 {[%emt 0:04:38]} 7. O-O {[%emt 0:03:38]} Nge7 {[%emt 0:07:49]} 8. d3 {[%emt 0:06:17]} d5 {[%emt 0:11:29]} 9. Qe1 {[%emt 0:20:48]} O-O {[%emt 0:17:15]} 10. f5 {[%emt 0:27:33]} d4 {[%emt 0:02:15]} 11. Qh4 {[%emt 0:05:13]} exf5 {[%emt 0:04:18]} 12. Bh6 {[%emt 0:01:15]} f6 {[%emt 0:05:52]} 13. e5 {[%emt 0:12:05]} Nxe5 {[%emt 0:06:53]} 14. Nxe5 {[%emt 0:01:56]} fxe5 {[%emt 0:01:07]} 15. Bg5 {[%emt 0:01:03]} Re8 {[%emt 0:13:06]} 16. Bxe7 {[%emt 0:07:08]} Qxe7 {[%emt 0:01:54]} 17. Qxe7 {[%emt 0:00:12]} Rxe7 {[%emt 0:00:05]} 18. Nd5 {[%emt 0:00:06]} Rf7 {[%emt 0:00:46]} 19. Bf3 {[%emt 0:01:23]} Be6 {[%emt 0:01:57]} 20. Rae1 {[%emt 0:02:38]} Re8 {[%emt 0:11:04]} 21. Nf4 {[%emt 0:00:53]} exf4 {[%emt 0:02:02]} 22. Bd5 {[%emt 0:00:43]} Rfe7 {[%emt 0:02:05]} 23. Rxe6 {[%emt 0:02:07]} Rxe6 {[%emt 0:00:08]} 24. Re1 {[%emt 0:00:32]} Kf7 {[%emt 0:00:13]} 25. Rxe6 {[%emt 0:00:58]} Rxe6 {[%emt 0:00:06]} 26. Kf2 {[%emt 0:00:16]} Kf6 {[%emt 0:01:15]} 27. Bxe6 {[%emt 0:00:30]} Kxe6 {[%emt 0:00:04]} 28. Kf3 {[%emt 0:00:40]} g5 {[%emt 0:00:48]} 29. h3 {[%emt 0:00:12]} Ke5 {[%emt 0:00:28]} 0-1

[Event "4NCL 2nd Div 2023-24"]
[Site "Daventry"]
[Date "2024.05.05"]
[Round "10.17"]
[White "Larkin, Vladyslav"]
[Black "Mestel, A Jonathan"]
[Result "1-0"]
[ECO "A48"]
[WhiteElo "2445"]
[BlackElo "2472"]
[Annotator "TA"]
[PlyCount "77"]
[EventDate "2023.11.11"]
[EventType "team-tourn"]
[EventCountry "ENG"]
[SourceTitle "playchess.com"]
[Source "ChessBase"]
[SourceQuality "1"]
[TimeControl "40/6000+30:3000+30"]

{[%evp 10,77,0,-10,29,25,26,20,29,6,38,22,29,36,26,23,14,17,16,12,11,0,7,12,14,0,14,8,0,8,83,79,78,83,90,45,51,27,57,68,89,83,95,63,145,136,123,131,862,725,713,707,691,426,424,425,403,352,340,298,304,301,310,278,634,623,595,611,653,528]} 1. d4 {[%emt 0:00:03]} Nf6 {[%emt 0:00:30]} 2. Bf4 {[%emt 0:00:36]} d6 {[%emt 0:01:12]} 3. Nf3 {[%emt 0:00:44]} g6 {[%emt 0:00:51]} 4. h3 {[%emt 0:00:15]} Bg7 {[%emt 0:00:51]} 5. c3 {[%emt 0:00:20]} O-O {[%emt 0:00:52]} 6. Nbd2 {[%emt 0:00:04]} c5 {[%emt 0:04:56]} 7. dxc5 {[%emt 0:00:27]} dxc5 {[%emt 0:01:39]} 8. e4 {[%emt 0:00:04]} Nc6 {[%emt 0:09:37] The position is equal.} 9. Bc4 {[%emt 0:00:23]} Nd7 {[%emt 0:01:59]} 10. O-O {[%emt 0:08:50]} Nde5 {[%emt 0:01:41]} 11. Nxe5 {[%emt 0:00:06]} Nxe5 {[%emt 0:00:13]} 12. Bxe5 {[%emt 0:00:18]} Bxe5 {[%emt 0:00:11]} 13. f4 {[%emt 0:00:05]} Bg7 {[%emt 0:00:26][%cal Ob7b5]} 14. a4 {[%emt 0:00:18]} Bd7 {[%emt 0:23:51]} 15. Qe2 {[%emt 0:03:21]} Qb6 {[%emt 0:05:18]} 16. Nf3 {[%emt 0:11:12]} Rad8 {[%emt 0:04:24]} 17. Rf2 {[%emt 0:02:57]} Be6 {[%emt 0:01:56] [#]} 18. f5 $1 {[%emt 0:39:34]} Bxc4 {[%emt 0:22:18]} 19. Qxc4 {[%emt 0:00:06]} gxf5 {[%emt 0:01:17]} (19... e6 $11 {keeps the balance.}) 20. exf5 $16 {[%emt 0:00:17]} Qd6 {[%emt 0:02:28]} 21. Re1 {[%emt 0:00:55]} Bf6 {[%emt 0:00:14]} 22. Qg4+ {[%emt 0:01:37]} Kh8 {[%emt 0:00:44]} 23. Ng5 {[%emt 0:00:39]} Rd7 {[%emt 0:03:00]} 24. h4 {[%emt 0:09:39][%cal Bh3h4,Bh4g5,Bg5g6][%mdl 32]} Bxg5 {[%emt 0:11:26]} 25. hxg5 {[%emt 0:00:05]} ({Don't play} 25. Qxg5 Rg8 26. Qf4 b6 $11) 25... Rg8 {[%emt 0:00:06]} 26. Qh4 $40 {[%emt 0:00:09][%mdl 128] White is up to no good.} e6 {[%emt 0:01:37] [#]} (26... Rg7 $14) 27. g6 $1 {[%emt 0:02:46][%mdl 512]} fxg6 {[%emt 0:00:08]} 28. fxe6 {[%emt 0:00:05] White is more active.} Qe7 {[%emt 0:03:11][%mdl 8192] A mistake that costs the game.} (28... Re7 $16) 29. Qh3 {[%emt 0:04:23] aiming for Ref1.} Qe8 {[%emt 0:00:58]} 30. Qe3 {[%emt 0:05:16]} ({Weaker is} 30. exd7 Qxe1+ 31. Rf1 Qe7 $16) 30... Re7 {[%emt 0:00:38]} 31. Qxc5 {[%emt 0:00:11]} h5 {[%emt 0:00:06]} 32. Qd4+ {[%emt 0:02:08]} ({Resist} 32. Qxa7 Rxe6 33. Rxe6 Qxe6 34. Qxb7 Qe3 $18) 32... Kh7 {[%emt 0:00:32]} 33. Qxa7 {[%emt 0:00:25]} Rxe6 {[%emt 0:01:00]} 34. Qxb7+ {[%emt 0:00:48]} Rg7 {[%emt 0:00:31]} 35. Rxe6 {[%emt 0:00:05]} Qxe6 {[%emt 0:00:06]} 36. Qf3 {[%emt 0:00:18]} Qb6 {[%emt 0:02:56]} (36... Ra7 37. Qf8 Rg7) 37. b4 $18 {[%emt 0:00:49] White is clearly winning.} Re7 {[%emt 0:00:06]} 38. Kh2 {[%emt 0:03:11]} h4 {[%emt 0:00:49]} 39. Qf6 {[%emt 0:00:55] Weighted Error Value: White=0.20 (precise) /Black=0.26 (precise) .  Loses game:     	---       	Black=1      Mistake:       	---       	Black=3      Inaccurate:     	White=2     	Black=2      OK:         	White=9     	Black=12     Best:        	White=1     	Black=3      Brilliant:      	White=1     	---} 1-0

[Event "4NCL 2nd Div 2023-24"]
[Site "Daventry"]
[Date "2024.05.05"]
[Round "10.18"]
[White "Roe, Simon J"]
[Black "Maycock Bates, David Henry"]
[Result "0-1"]
[ECO "A14"]
[WhiteElo "2177"]
[BlackElo "2266"]
[Annotator "TA"]
[PlyCount "54"]
[EventDate "2023.11.11"]
[EventType "team-tourn"]
[EventCountry "ENG"]
[SourceTitle "playchess.com"]
[Source "ChessBase"]
[SourceQuality "1"]
[TimeControl "40/6000+30:3000+30"]

{[%evp 12,54,15,0,3,0,18,21,5,12,10,12,17,0,7,-10,0,-21,-15,-26,0,-9,-9,-28,-27,-65,-67,-59,-44,-95,-81,-125,-114,-160,-144,-158,-117,-179,-169,-639,-617,-2212,-2032,-1326,-1295]} 1. c4 {[%emt 0:00:03]} Nf6 {[%emt 0:00:36]} 2. Nf3 {[%emt 0:00:41]} e6 {[%emt 0:00:15]} 3. g3 {[%emt 0:00:06]} d5 {[%emt 0:00:12]} 4. Bg2 {[%emt 0:00:28]} Be7 {[%emt 0:00:09]} 5. O-O {[%emt 0:00:40]} O-O {[%emt 0:00:55]} 6. b3 {[%emt 0:00:05]} d4 {[%emt 0:00:29]} 7. e3 {[%emt 0:01:38]} c5 {[%emt 0:00:10]} 8. Ne5 {[%emt 0:02:00] Against Nc6} Nfd7 {[%emt 0:13:21]} 9. exd4 {[%emt 0:03:35]} cxd4 {[%emt 0:00:13] The position is equal.} 10. Nxd7 {[%emt 0:00:13]} Nxd7 {[%emt 0:05:33]} 11. d3 {[%emt 0:03:36]} Nc5 {[%emt 0:08:48]} 12. Ba3 {[%emt 0:20:07]} Qc7 {[%emt 0:32:29]} 13. Re1 {[%emt 0:13:29]} a5 {[%emt 0:00:57]} 14. Bxc5 {[%emt 0:09:06]} Bxc5 {[%emt 0:00:10]} 15. Nd2 {[%emt 0:00:18]} a4 {[%emt 0:02:41]} 16. bxa4 {[%emt 0:02:49]} Bd7 {[%emt 0:02:01]} 17. Qb3 {[%emt 0:07:02]} Rxa4 {[%emt 0:24:34]} 18. Ne4 {[%emt 0:21:19]} (18. Bxb7 $2 {loses.} Rb4 19. Qd1 Rxb7 $19 (19... Qxb7 $2 20. a4 $19)) 18... Be7 {[%emt 0:00:49]} 19. Rab1 {[%emt 0:03:27]} Bc6 {[%emt 0:01:18]} 20. c5 {[%emt 0:07:19] [#]} (20. Qc2 $15) 20... Rfa8 $1 $17 {[%emt 0:00:36]} 21. Qb2 {[%emt 0:00:51]} h6 {[%emt 0:03:17]} 22. Rec1 {[%emt 0:03:06]} ({Better is} 22. h4) 22... Qe5 {[%emt 0:01:14] Black is more active.} ({Don't take} 22... Rxa2 23. Qxd4 Rd8 24. Qc4 $17) 23. f4 {[%emt 0:01:38]} Qf5 {[%emt 0:02:54]} 24. Qf2 {[%emt 0:02:13]} (24. Ra1 $17) 24... Rxa2 $19 {[%emt 0:04:10]} 25. Qxd4 {[%emt 0:00:08]} (25. Rb2 Ra1 26. Rbc2) 25... Rd8 {[%emt 0:03:07] Black is clearly winning.} 26. Qe3 {[%emt 0:03:43] [#]} Rxg2+ {[%emt 0:00:23][%mdl 512]} 27. Kxg2 {[%emt 0:00:23] [#]} Rxd3 $3 {[%emt 0:00:03][%mdl 512] Weighted Error Value: White=0.78/Black=0.18 (very precise) .  Mistake:       	White=4     	---        Inaccurate:     	White=3     	Black=1      OK:         	White=4     	Black=9      Strong:       	---       	Black=1} 0-1

[Event "4NCL 2nd Div 2023-24"]
[Site "Daventry"]
[Date "2024.05.05"]
[Round "10.19"]
[White "Bezuidenhout, Roland"]
[Black "Bradbury, Neil H"]
[Result "1-0"]
[ECO "A06"]
[WhiteElo "2254"]
[BlackElo "2182"]
[Annotator "TA"]
[PlyCount "107"]
[EventDate "2023.11.11"]
[EventType "team-tourn"]
[EventCountry "ENG"]
[SourceTitle "playchess.com"]
[Source "ChessBase"]
[SourceQuality "1"]
[TimeControl "40/6000+30:3000+30"]

{[%evp 11,107,9,22,15,29,24,35,32,32,29,38,26,30,27,21,22,36,25,31,21,38,47,50,49,66,70,60,55,77,48,73,71,70,18,47,47,79,71,71,75,65,73,78,64,83,94,96,111,105,44,45,0,0,0,0,6,7,0,0,0,0,0,0,0,0,0,44,45,115,86,124,36,46,10,50,29,32,20,26,22,22,22,22,22,159,164,281,281,1239,1262,5043,5039,29989,29990,29992,29991,29991,29992]} 1. Nf3 {[%emt 0:01:48]} Nf6 {[%emt 0:01:14]} 2. b3 {[%emt 0:01:24]} d5 {[%emt 0:00:47]} 3. Bb2 {[%emt 0:00:07]} c5 {[%emt 0:00:12]} 4. e3 {[%emt 0:00:21]} Nc6 {[%emt 0:01:01]} 5. Bb5 {[%emt 0:00:07]} Bd7 {[%emt 0:02:50]} 6. O-O {[%emt 0:00:14]} e6 {[%emt 0:00:31]} 7. d4 {[%emt 0:00:08]} a6 {[%emt 0:03:48]} 8. Bd3 {[%emt 0:02:32]} Rc8 {[%emt 0:02:24]} 9. a3 {[%emt 0:00:35] White is slightly better.} cxd4 {[%emt 0:07:33]} 10. exd4 {[%emt 0:00:13]} g6 {[%emt 0:00:08]} 11. c4 {[%emt 0:02:57]} Bg7 {[%emt 0:00:50]} 12. Nbd2 {[%emt 0:00:32]} O-O {[%emt 0:00:14]} 13. Re1 {[%emt 0:00:49]} Nh5 {[%emt 0:17:10]} 14. Bf1 {[%emt 0:01:21]} Re8 {[%emt 0:08:02]} 15. c5 {[%emt 0:05:03]} f5 {[%emt 0:01:43]} 16. b4 {[%emt 0:01:02]} Nf6 {[%emt 0:02:09]} 17. Ne5 {[%emt 0:06:19]} Ne4 {[%emt 0:05:00]} 18. Nxc6 {[%emt 0:01:56]} Bxc6 {[%emt 0:00:52]} 19. a4 {[%emt 0:03:08]} Ra8 {[%emt 0:07:10]} 20. Nb3 {[%emt 0:04:14]} f4 {[%emt 0:05:01]} 21. f3 {[%emt 0:00:48][%cal Ob4b5] b5! is the strong threat.} (21. b5 $5 Bd7 22. b6 $16) 21... Ng3 {[%emt 0:00:42]} 22. Nc1 {[%emt 0:07:47]} ({Much weaker is} 22. hxg3 fxg3 23. Qc2 (23. b5 $2 Qh4 $19) 23... Qh4 $11) (22. b5 $14 Bd7 23. b6 (23. hxg3 fxg3 24. bxa6 bxa6 $17)) 22... Nxf1 {[%emt 0:02:36]} 23. Kxf1 {[%emt 0:01:12]} b6 {[%emt 0:02:08]} 24. Nd3 {[%emt 0:00:21]} bxc5 {[%emt 0:02:15]} 25. bxc5 {[%emt 0:00:19]} (25. Nxc5 Bd7 26. Qd3 Bc8 $14) 25... Rb8 {[%emt 0:03:36]} 26. Bc3 {[%emt 0:00:14]} Qc7 {[%emt 0:12:55]} 27. Qc2 {[%emt 0:07:38]} Bd7 {[%emt 0:02:40]} 28. Ne5 {[%emt 0:02:06]} Bxe5 {[%emt 0:03:05]} 29. Rxe5 {[%emt 0:00:07]} Qb7 {[%emt 0:00:15]} 30. Ke1 {[%emt 0:03:35]} (30. Kg1 $16) 30... Qb3 $14 {[%emt 0:01:00]} 31. Qxb3 {[%emt 0:00:35]} Rxb3 {[%emt 0:00:02]} 32. Kd2 {[%emt 0:00:12]} Kf7 {[%emt 0:00:26]} 33. Kc2 {[%emt 0:03:38]} Reb8 {[%emt 0:00:14]} 34. h4 {[%emt 0:00:32]} h6 {[%emt 0:03:08]} 35. Ree1 {[%emt 0:01:14]} Kf6 {[%emt 0:02:37]} 36. Ra2 {[%emt 0:01:08]} g5 {[%emt 0:00:24]} 37. hxg5+ {[%emt 0:01:03]} hxg5 {[%emt 0:00:02]} 38. Ba5 {[%emt 0:00:46]} R3b7 {[%emt 0:07:58]} 39. Bb6 {[%emt 0:04:42]} Rg8 {[%emt 0:03:27]} (39... a5 $14) 40. Kc3 {[%emt 0:01:02]} g4 {[%emt 0:00:18]} 41. fxg4 {[%emt 0:50:44]} ({Better is} 41. Kb4 $16) 41... Rxg4 {[%emt 0:50:14][%cal Oa6a5]} 42. Rae2 {[%emt 0:03:02]} Kf7 {[%emt 0:00:00]} (42... a5 $5) 43. Rf2 {[%emt 0:00:00]} Bxa4 {[%emt 0:00:00]} 44. Kb4 {[%emt 0:00:00]} Bb5 {[%emt 0:00:00] [#]} (44... Bd7 {simplifies} 45. Ka5 Bb5 46. Rc1 Bc6) 45. g3 $1 {[%emt 0:00:00]} Rxg3 {[%emt 0:00:00]} 46. Rxf4+ {[%emt 0:00:00]} Ke7 {[%emt 0:00:00]} 47. Rh4 {[%emt 0:00:00][%mdl 1024] White has compensation.} Rg7 {[%emt 0:00:00] Repels Rh7} (47... Bd3 $11 {remains equal.}) 48. Rh6 $16 {[%emt 0:00:00] White is more active.} Bd7 {[%emt 0:00:00]} (48... Kf8 {keeps fighting.} 49. Rexe6 (49. Rhxe6 Rg2 $16) 49... Rg1) 49. Ka5 $18 {[%emt 0:00:00]} Bc8 $2 {[%emt 0:00:00]} (49... Kf7 50. Kxa6 Rb8) 50. c6 {[%emt 0:00:00]} Rb8 {[%emt 0:00:00]} 51. Bc5+ {[%emt 0:00:00]} Kd8 {[%emt 0:00:00] [#]} 52. Bd6 $1 {[%emt 0:00:00] White mates.} Rb5+ {[%emt 0:00:00]} 53. Ka4 {[%emt 0:00:00]} Rg8 {[%emt 0:00:00] [#]} 54. Rg1 $3 {[%emt 0:00:00][%mdl 512] Weighted Error Value: White=0.12 (very precise) /Black=0.29 (precise) .  Mistake:       	White=3     	Black=4      Inaccurate:     	White=3     	Black=6      OK:         	White=16    	Black=12     Best:        	White=2     	Black=3} 1-0

[Event "4NCL 2nd Div 2023-24"]
[Site "Daventry"]
[Date "2024.05.05"]
[Round "10.20"]
[White "Richardson, John R"]
[Black "Harakis, Alexis M"]
[Result "1-0"]
[ECO "D35"]
[WhiteElo "2287"]
[BlackElo "2234"]
[Annotator "RC"]
[PlyCount "77"]
[EventDate "2023.11.11"]
[EventType "team-tourn"]
[EventCountry "ENG"]
[SourceTitle "playchess.com"]
[Source "ChessBase"]
[SourceQuality "1"]
[TimeControl "40/6000+30:3000+30"]

1. d4 {[%emt 0:00:01]} d5 {[%emt 0:10:27]} 2. c4 {[%emt 0:00:06]} c6 {[%emt 0:00:19]} 3. Nc3 {[%emt 0:00:27]} Nf6 {[%emt 0:00:06]} 4. Nf3 {[%emt 0:00:07]} e6 {[%emt 0:00:07]} 5. Bg5 {[%emt 0:00:05]} h6 {[%emt 0:00:10]} 6. Bh4 {[%emt 0:00:40]} Nbd7 {[%emt 0:03:47]} 7. e3 {[%emt 0:00:06]} Be7 {[%emt 0:00:05]} 8. cxd5 {[%emt 0:00:38]} exd5 {[%emt 0:00:07]} 9. Bd3 {[%emt 0:00:05]} Ne4 {[%emt 0:07:31]} 10. Bxe7 {[%emt 0:00:07]} Qxe7 {[%emt 0:00:04]} 11. Qc2 {[%emt 0:02:56]} Nd6 {[%emt 0:00:49]} 12. O-O {[%emt 0:00:57]} O-O {[%emt 0:00:04]} 13. Rfe1 {[%emt 0:06:46]} Nf6 {[%emt 0:14:38]} 14. Ne5 {[%emt 0:02:38]} Be6 {[%emt 0:02:39]} 15. Na4 {[%emt 0:02:57]} Rad8 {[%emt 0:07:08]} 16. Nc5 {[%emt 0:11:30]} Bc8 {[%emt 0:02:38]} 17. b4 {[%emt 0:01:28]} Nfe8 {[%emt 0:07:08]} 18. a4 {[%emt 0:01:08]} Nc7 {[%emt 0:01:08]} 19. f3 {[%emt 0:02:32]} Qf6 {[%emt 0:08:57]} 20. b5 {[%emt 0:04:55]} cxb5 {[%emt 0:02:28]} 21. Nxb7 {[%emt 0:00:29]} Nxb7 {[%emt 0:16:15]} 22. Qxc7 {[%emt 0:00:10]} bxa4 {[%emt 0:05:39]} 23. Rxa4 {[%emt 0:02:51]} a5 {[%emt 0:00:26]} 24. Rb1 {[%emt 0:00:44]} Qg5 {[%emt 0:01:10]} 25. f4 {[%emt 0:02:16]} Qh5 {[%emt 0:00:21]} 26. Raa1 {[%emt 0:04:10]} f6 {[%emt 0:03:56]} 27. Bg6 {[%emt 0:09:06]} Qe2 {[%emt 0:02:19]} 28. Re1 {[%emt 0:00:46]} Qa6 {[%emt 0:01:35]} 29. Bf7+ {[%emt 0:00:34]} Kh7 {[%emt 0:00:03]} 30. Ng6 {[%emt 0:01:33]} Rxf7 {[%emt 0:00:49]} 31. Qxf7 {[%emt 0:00:06]} Bf5 {[%emt 0:01:06]} 32. Ne7 {[%emt 0:08:00]} Be4 {[%emt 0:00:50]} 33. Rac1 {[%emt 0:04:55]} Qb6 {[%emt 0:01:28]} 34. Qh5 {[%emt 0:05:12]} Qe6 {[%emt 0:01:10]} 35. Rc7 {[%emt 0:03:15]} Nd6 {[%emt 0:01:31]} 36. f5 {[%emt 0:07:21]} Nxf5 {[%emt 0:00:38]} 37. Qg6+ {[%emt 0:00:37]} Kh8 {[%emt 0:00:03]} 38. Nxf5 {[%emt 0:00:06]} Rg8 {[%emt 0:00:24]} 39. Rxg7 {[%emt 0:02:15]} 1-0

[Event "4NCL 2nd Div 2023-24"]
[Site "Daventry"]
[Date "2024.05.05"]
[Round "10.21"]
[White "Storey, Charles H"]
[Black "Snape, Ian L"]
[Result "1-0"]
[ECO "E90"]
[WhiteElo "2150"]
[BlackElo "2086"]
[Annotator "RC"]
[PlyCount "107"]
[EventDate "2023.11.11"]
[EventType "team-tourn"]
[EventCountry "ENG"]
[SourceTitle "playchess.com"]
[Source "ChessBase"]
[SourceQuality "1"]
[TimeControl "40/6000+30:3000+30"]

1. d4 {[%emt 0:15:17]} c5 {[%emt 0:00:06]} 2. d5 {[%emt 0:00:27]} g6 {[%emt 0:00:04]} 3. c4 {[%emt 0:00:03]} d6 {[%emt 0:00:04]} 4. Nc3 {[%emt 0:00:03]} Bg7 {[%emt 0:00:14]} 5. e4 {[%emt 0:00:04]} Nf6 {[%emt 0:00:06]} 6. Nf3 {[%emt 0:00:10]} O-O {[%emt 0:00:14]} 7. Bd3 {[%emt 0:00:04]} e6 {[%emt 0:01:13]} 8. O-O {[%emt 0:00:11]} exd5 {[%emt 0:00:11]} 9. exd5 {[%emt 0:00:09]} a6 {[%emt 0:06:29]} 10. h3 {[%emt 0:00:10]} Qc7 {[%emt 0:03:07]} 11. Bf4 {[%emt 0:00:38]} Nbd7 {[%emt 0:03:16]} 12. Qd2 {[%emt 0:00:08]} Ne8 {[%emt 0:02:02]} 13. Rae1 {[%emt 0:00:21]} Ne5 {[%emt 0:00:49]} 14. Nxe5 {[%emt 0:00:29]} dxe5 {[%emt 0:00:14]} 15. Bh2 {[%emt 0:00:18]} Nd6 {[%emt 0:00:58]} 16. f4 {[%emt 0:00:55]} e4 {[%emt 0:12:14]} 17. Nxe4 {[%emt 0:01:18]} Nxe4 {[%emt 0:00:08]} 18. Bxe4 {[%emt 0:00:16]} f5 {[%emt 0:00:29]} 19. Bd3 {[%emt 0:03:15]} b5 {[%emt 0:01:31]} 20. cxb5 {[%emt 0:00:18]} c4 {[%emt 0:00:17]} 21. Be2 {[%emt 0:01:33]} axb5 {[%emt 0:00:32]} 22. a3 {[%emt 0:01:48]} c3 {[%emt 0:03:28]} 23. bxc3 {[%emt 0:00:03]} Bxc3 {[%emt 0:00:29]} 24. Qd3 {[%emt 0:01:54]} Bxe1 {[%emt 0:11:16]} 25. Rxe1 {[%emt 0:00:18]} Qc5+ {[%emt 0:00:23]} 26. Kh1 {[%emt 0:00:12]} Rxa3 {[%emt 0:00:38]} 27. Bg1 {[%emt 0:03:25]} Qb4 {[%emt 0:03:13]} 28. Qd1 {[%emt 0:00:27]} Re8 {[%emt 0:05:23]} 29. Rf1 {[%emt 0:00:03]} Bb7 {[%emt 0:06:03]} 30. Bf3 {[%emt 0:01:00]} Qd6 {[%emt 0:07:28]} 31. Bd4 {[%emt 0:04:46]} Rxf3 {[%emt 0:01:46]} 32. Qxf3 {[%emt 0:00:32]} Bxd5 {[%emt 0:03:20]} 33. Qf2 {[%emt 0:00:55]} Qa3 {[%emt 0:04:41]} 34. Kh2 {[%emt 0:03:44]} Qd3 {[%emt 0:02:18]} 35. Be5 {[%emt 0:00:49]} Qe4 {[%emt 0:17:09]} 36. Re1 {[%emt 0:01:18]} Qb4 {[%emt 0:01:11]} 37. Ra1 {[%emt 0:02:57]} Qe4 {[%emt 0:00:33]} 38. Re1 {[%emt 0:03:55]} Qb4 {[%emt 0:00:24]} 39. Rd1 {[%emt 0:00:29]} Qe4 {[%emt 0:00:57]} 40. Ba1 {[%emt 0:02:23]} Re7 {[%emt 0:05:16]} 41. Bf6 {[%emt 0:56:55]} Rc7 {[%emt 0:56:15]} 42. Rd2 {[%emt 0:02:36]} b4 {[%emt 0:00:00]} 43. Re2 {[%emt 0:00:00]} Qc4 {[%emt 0:00:00]} 44. Be5 {[%emt 0:00:00]} Re7 {[%emt 0:00:00]} 45. Rc2 {[%emt 0:00:00]} Qe4 {[%emt 0:00:00]} 46. Rc8+ {[%emt 0:00:00]} Kf7 {[%emt 0:00:00]} 47. Bd6 {[%emt 0:00:00]} Rd7 {[%emt 0:00:00]} 48. Rf8+ {[%emt 0:00:00]} Kg7 {[%emt 0:08:01]} 49. Qb2+ {[%emt 0:00:00]} Kh6 {[%emt 0:00:00]} 50. Be5 {[%emt 0:00:00]} Qe1 {[%emt 0:00:00]} 51. Re8 {[%emt 0:00:00]} Be4 {[%emt 0:00:00]} 52. Bf6 {[%emt 0:00:00]} Rd3 {[%emt 0:00:00]} 53. Bg7+ {[%emt 0:00:00]} Kh5 {[%emt 0:00:00]} 54. g4+ {[%emt 0:47:08]} 1-0

[Event "4NCL 2nd Div 2023-24"]
[Site "Daventry"]
[Date "2024.05.05"]
[Round "10.22"]
[White "Banerjee, Supratit"]
[Black "Frostick, Clive A"]
[Result "1/2-1/2"]
[ECO "B22"]
[WhiteElo "2139"]
[BlackElo "2130"]
[Annotator "NA RC"]
[PlyCount "47"]
[EventDate "2023.11.11"]
[EventType "team-tourn"]
[EventCountry "ENG"]
[SourceTitle "playchess.com"]
[Source "ChessBase"]
[SourceQuality "1"]
[TimeControl "40/6000+30:3000+30"]

1. e4 {[%emt 0:00:08]} c5 {[%emt 0:00:34]} 2. c3 {[%emt 0:00:11]} Nf6 {[%emt 0:01:37]} 3. e5 {[%emt 0:00:47]} Nd5 {[%emt 0:00:18]} 4. d4 {[%emt 0:00:25]} cxd4 {[%emt 0:00:48]} 5. cxd4 {[%emt 0:00:14]} Nc6 {[%emt 0:01:09]} 6. Nf3 {[%emt 0:00:14]} d6 {[%emt 0:00:58]} 7. Bc4 {[%emt 0:00:32]} dxe5 {[%emt 0:00:51]} 8. dxe5 {[%emt 0:00:25]} Ndb4 {[%emt 0:01:24]} 9. Qxd8+ {[%emt 0:14:29]} Nxd8 {[%emt 0:03:16]} 10. Na3 {[%emt 0:01:51]} Be6 {[%emt 0:05:40]} 11. Bb5+ {[%emt 0:08:30]} Nbc6 {[%emt 0:08:22]} 12. O-O {[%emt 0:03:08]} g6 {[%emt 0:02:59]} 13. Nd4 {[%emt 0:10:53]} Bd7 {[%emt 0:11:13]} 14. Nxc6 {[%emt 0:08:47]} Nxc6 {[%emt 0:10:17]} 15. Re1 {[%emt 0:11:27]} Bg7 {[%emt 0:10:28]} 16. Bd2 {[%emt 0:15:56]} O-O {[%emt 0:10:04]} 17. Bc3 {[%emt 0:01:53]} Be6 {[%emt 0:09:29]} 18. Nc2 {[%emt 0:01:43]} Rfd8 {[%emt 0:05:05]} 19. Bxc6 {[%emt 0:07:29]} bxc6 {[%emt 0:00:06]} 20. Nd4 {[%emt 0:00:12]} Bd5 {[%emt 0:01:02]} 21. Nb3 {[%emt 0:01:14]} e6 {[%emt 0:10:41]} 22. Na5 {[%emt 0:03:43]} Rab8 {[%emt 0:01:56]} 23. Rad1 {[%emt 0:02:56]} Rdc8 {[%emt 0:02:31]} 24. b3 {[%emt 0:03:26]} 1/2-1/2